Cogmind - Beta 10.2 @@@ ROGUE MODE // 2021.01.29 @ 20:20:54 Player: WayneKnight Result: Destroyed by 8R-AWN with 8R-AWN's Boregun Performance ------------- Evolutions (0) 0 Regions Visited (3) 600 Robots Destroyed (20) 100 Value Destroyed (436) 436 Prototype IDs (27) 540 Alien Tech Used (0) 0 Bonus (-38) -38 TOTAL SCORE: 1638 Bonus ------- Aligned with FarCom 300 Friendly Fire -338 Cogmind --------- Core Integrity 0/250 Matter 104/300 Energy 250/250 System Corruption 0% Temperature Cool (0) Movement Walking (360) Ox8 Location -10/Exiles Parts ------- > --- POWER (1) -------- Ion Engine > --- PROPULSION (2) --- Light Treads Aluminum Leg > --- UTILITY (2) ------ Humpback > --- WEAPON (2) ------- Mining Claw > --- INVENTORY (24) --- Light Ion Engine Light Ion Engine Aluminum Leg Advanced Myomer Leg Large Storage Unit Large Storage Unit High-capacity Storage Unit Humpback Medium Matter Pod (0) Medium Matter Pod (0) Medium Matter Pod (0) Large Matter Pod (145) Experimental Sensor Array Light Armor Plating EM Pulse Gun Grenade Launcher Peak State ------------ > --- POWER ------------ Light Ion Engine > --- PROPULSION ------- Light Treads Light Treads > --- UTILITY ---------- Large Storage Unit High-capacity Storage Unit > --- WEAPON ----------- Assault Rifle Minigun > --- INVENTORY -------- Ion Engine Light Ion Engine Light Ion Engine Light Treads Light Treads Light Treads Aluminum Leg Aluminum Leg Large Storage Unit Large Matter Pod Experimental Sensor Array Light Armor Plating EM Pulse Gun EM Pulse Gun Medium Laser Light Assault Rifle Grenade Launcher Mining Claw [Rating: 11] Favorites ----------- Power Light Ion Engine Engine Light Ion Engine Propulsion Light Treads Treads Light Treads Leg Aluminum Leg Utility Large Storage Unit Storage Large Storage Unit Weapon Assault Rifle Energy Gun Medium Laser Ballistic Gun Assault Rifle Launcher Grenade Launcher Slashing Weapon Mining Claw Build | -11 -10 -10 -10 ------- Run | Scr Mat Min Exi Slots Evolved . | . . . . Power . | . . . . Propulsion . | . . . . Utility . | . . . . Weapon . | . . . . Parts Attached 33 | 2 15 3 13 Power 2 | . 1 . 1 Engine 2 | . 1 . 1 Core . | . . . . Reactor . | . . . . Propulsion 9 | 2 3 . 4 Treads 8 | 2 3 . 3 Leg 1 | . . . 1 Wheel . | . . . . Hover . | . . . . Flight . | . . . . Utility 4 | . 3 . 1 Device . | . . . . Storage 4 | . 3 . 1 Processor . | . . . . Hackware . | . . . . Protection . | . . . . Artifact . | . . . . Weapon 18 | . 8 3 7 Energy Gun 4 | . 1 . 3 Energy Cannon . | . . . . Ballistic Gun 8 | . 3 3 2 Ballistic Cannon . | . . . . Launcher 5 | . 4 . 1 Special Weapon . | . . . . Impact Weapon . | . . . . Slashing Weapon 1 | . . . 1 Piercing Weapon . | . . . . Special Melee Weapon . | . . . . Unidentified Prototypes . | . . . . Parts Lost 10 | . 1 . 9 Power 1 | . . . 1 Propulsion 4 | . . . 4 Utility . | . . . . Weapon 5 | . 1 . 4 Highest Loss Streak 7 | . 1 . 7 Average Slot Usage (%) 95 | . 95 100 93 Engine 14 | . 14 14 14 Treads 27 | . 27 28 27 Storage 24 | . 23 28 22 Energy Gun 3 | . 5 . 1 Ballistic Gun 23 | . 21 27 25 Naked Turns . | . . . . Heaviest Build 89 | 11 55 56 89 Greatest Support 40 | 40 40 40 40 Greatest Overweight (x) 4 | . 1 1 4 Average Overweight (x) . | . . 1 1 Largest Inventory Capacity 24 | 6 18 18 24 Average Capacity 16 | 6 13 18 20 Most Carried 24 | 6 16 18 24 Average Carried 13 | 6 9 16 18 Final Capacity 24 | 6 18 18 24 Final Carried 18 | 6 16 18 17 Class Distribution -------------------- 92% | Mutant 7% | Hauler-Mutant Dominant Class ---------------- Mutant | -10/Materials Mutant | -10/Mines Mutant | -10/Exiles Resources | -11 -10 -10 -10 ----------- Run | Scr Mat Min Exi Matter Collected 761 | 190 233 38 300 Remotely . | . . . . Salvage Created 566 | 92 408 . 66 Parts 43 | . 41 . 2 Haulers Intercepted 1 | . 1 . . Recyclers Shooed 1 | . 1 . . Parts Field Recycled . | . . . . Retrieved Matter . | . . . . Parts Self-Destructed . | . . . . Prevented . | . . . . Kills | -11 -10 -10 -10 ------- Run | Scr Mat Min Exi Combat Hostiles Destroyed 16 | . 13 . 3 Guns 9 | . 8 . 1 AOE 7 | . 5 . 2 Classes Destroyed 7 | 1 5 . 1 Builder 1 | . 1 . . Hauler 1 | . 1 . . Recycler 1 | 1 . . . Watcher 3 | . 3 . . Swarmer 5 | . 5 . . Grunt 9 | . 8 . 1 Assembled 4 | . . . 4 Best Kill Streak 4 | 1 4 . 3 Combat Bots Only 3 | . 3 . 3 Max Kills in Single Turn 2 | 1 2 . 2 Gunslinging . | . . . . Exploded 2 | . 2 . 2 Melee . | . . . . Uniques/NPCs Destroyed . | . . . . Combat | -11 -10 -10 -10 -------- Run | Scr Mat Min Exi Damage Taken 1652 | 22 255 164 1211 Core 257 | . 34 . 223 Absorbed by Shields . | . . . . Core Remaining (%) 100 | 100 . . . Volleys Fired 76 | 5 42 . 29 Largest 2 | 2 2 . 2 Hottest 80 | 60 70 . 80 Shots Fired 137 | 10 71 . 56 Gun 124 | 10 60 . 54 Cannon . | . . . . Launcher 13 | . 11 . 2 Special . | . . . . Kinetic 84 | 5 41 . 38 Thermal 14 | . 14 . . Explosive 13 | . 11 . 2 Electromagnetic 26 | 5 5 . 16 Robot Hit Streak 13 | 4 11 . 13 Robot Miss Streak 3 | 1 3 . 2 Penetration Max . | . . . . Secondary Targets . | . . . . Shots Hit Robots 108 | 8 45 . 55 Core Hits 56 | 2 33 . 21 Critical Hits . | . . . . Critical Kills . | . . . . Critical Parts Destroyed . | . . . . Melee Attacks 14 | . . . 14 Impact . | . . . . Slashing 14 | . . . 14 Piercing . | . . . . Sneak Attacks . | . . . . Combat Hostiles . | . . . . Follow-up Attacks . | . . . . Damage Inflicted 2060 | 113 1071 20 856 Guns 1017 | 92 505 . 420 Cannons . | . . . . Explosions 802 | 21 534 . 247 Melee 189 | . . . 189 Ramming 52 | . 32 20 . Kinetic 786 | 54 326 . 406 Thermal 160 | 21 139 . . Explosive 756 | . 509 . 247 Electromagnetic 117 | 38 65 . 14 Impact . | . . . . Slashing 189 | . . . 189 Piercing . | . . . . Highest Corruption . | . . . . Average Corruption . | . . . . Corruption Purged . | . . . . Overload Shots . | . . . . Overflow Damage 5 | . . 5 . Projectiles . | . . . . Explosions . | . . . . Melee 5 | . . 5 . Knockbacks . | . . . . Impact . | . . . . Kinetic . | . . . . Secondary . | . . . . Self-Inflicted Damage 44 | 23 21 . . Shots 3 | 1 2 . . Rammed 5 | . 4 1 . Targets Rammed 5 | . 4 1 . Kicked . | . . . . Crushed . | . . . . Highest Temperature 106 | 12 66 . 106 Average Temperature 28 | 12 23 . 34 Received Heat Transfer 78 | . 63 . 15 Siege Activations . | . . . . Robots Corrupted . | . . . . Combat Hostiles . | . . . . Parts Fried . | . . . . Impact Corruptions 1 | . . 1 . Robots Melted . | . . . . Combat Hostiles . | . . . . Parts Melted 2 | . 2 . . Heat Transferred 433 | 50 383 . . Parts Sabotaged . | . . . . Parts Stolen . | . . . . Parts Stripped . | . . . . Power Chain Reactions 2 | 1 1 . . Missiles Intercepted . | . . . . Alert | -11 -10 -10 -10 ------- Run | Scr Mat Min Exi Peak Influence 243 | 5 243 21 . Initial 21 | . 3 21 . Average 66 | . 95 6 . Maximum Alert Level 1 | . 1 . . Low Security (%) 94 | 100 92 100 . Level 1 5 | . 7 . . Level 2 . | . . . . Level 3 . | . . . . Level 4 . | . . . . Level 5 . | . . . . High Security . | . . . . Max Security . | . . . . Squads Dispatched 4 | . 4 . . Investigation 2 | . 2 . . Extermination . | . . . . Reinforcement 2 | . 2 . . Assault . | . . . . Garrison . | . . . . Intercept . | . . . . Construction Impeded . | . . . . Haulers Reinforced . | . . . . Stealth | -11 -10 -10 -10 --------- Run | Scr Mat Min Exi Distress Signals . | . . . . Communications Jammed . | . . . . Distress Signals . | . . . . Times Spotted 28 | . 21 . 7 Peak Tracking Total 6 | . 4 . 6 Tactical Retreats 1 | . 1 . . Traps | -11 -10 -10 -10 ------- Run | Scr Mat Min Exi Traps Triggered 3 | . 3 . . Indirectly . | . . . . Trap Hack Attempts . | . . . . Triggered . | . . . . Disarmed . | . . . . Reprogrammed . | . . . . Reused . | . . . . Traps Extracted . | . . . . Installed . | . . . . Triggered . | . . . . Machines | -11 -10 -10 -10 ---------- Run | Scr Mat Min Exi Machines Disabled 7 | . 4 . 3 Max in Single Turn 2 | . 2 . 2 Machines Sabotaged . | . . . . Garrisons Compromised . | . . . . Overloaded Fab Kills . | . . . . Fab Network Shutdowns . | . . . . Hacking | -11 -10 -10 -10 --------- Run | Scr Mat Min Exi Machines Accessed 10 | . 7 1 2 Terminals 5 | . 5 . . Fabricators . | . . . . Repair Stations . | . . . . Recycling Units 2 | . 2 . . Scanalyzers . | . . . . Garrison Access . | . . . . Total Hacks 31 | . 28 1 2 Successful 22 | . 19 1 2 Failed 9 | . 9 . . Catastrophic 1 | . 1 . . Database Lockouts . | . . . . Manual 25 | . 24 . 1 Terminals 23 | . 23 . . Fabricators . | . . . . Repair Stations . | . . . . Recycling Units 5 | . 5 . . Scanalyzers . | . . . . Garrison Access . | . . . . Terminal Hacks 10 | . 7 1 2 Record 1 | . . . 1 Robot Analysis 4 | . 4 . . Prototype ID Bank 2 | . 2 . . Open Door 1 | . . 1 . Locate Traps 1 | . 1 . . EX-Prototype ID Bank 1 | . . . 1 Fabricator Hacks . | . . . . Repair Station Hacks . | . . . . Recycling Unit Hacks 2 | . 2 . . Report Inventory 2 | . 2 . . Scanalyzer . | . . . . Garrison Access Hacks . | . . . . Unauthorized Hacks 10 | . 10 . . Terminals 8 | . 8 . . Track 3 | . 3 . . Assimilate 1 | . 1 . . Botnet 3 | . 3 . . Operators 1 | . 1 . . Fabricators . | . . . . Repair Stations . | . . . . Recycling Units 2 | . 2 . . Tunnel 2 | . 2 . . Scanalyzers . | . . . . Garrison Access . | . . . . Data Cores Recovered . | . . . . Used . | . . . . Hacking Detections 6 | . 6 . . Full Trace Events 1 | . 1 . . Feedback Events . | . . . . Feedback Blocked . | . . . . Robot Schematics Acquired . | . . . . Robots Built . | . . . . Matter . | . . . . Time . | . . . . Total Robot Build Rating . | . . . . Part Schematics Acquired . | . . . . Parts Built . | . . . . Matter . | . . . . Time . | . . . . Total Part Build Rating . | . . . . Parts Repaired . | . . . . Time . | . . . . Parts Recycled . | . . . . Recycled Matter . | . . . . Retrieved Matter . | . . . . Retrieved Components . | . . . . Parts Scanalyzed . | . . . . Part Schematics Acquired . | . . . . Parts Damaged . | . . . . Bothacking | -11 -10 -10 -10 ------------ Run | Scr Mat Min Exi Used RIF Installer . | . . . . Robots Hacked . | . . . . Non-combat . | . . . . Combat . | . . . . Robot Hacks Applied . | . . . . Relay Couplers Released . | . . . . Robots Rewired . | . . . . Allies Hacked . | . . . . Hacks Repelled . | . . . . Allies | -11 -10 -10 -10 -------- Run | Scr Mat Min Exi Total Allies 5 | . . 5 . Largest Group 5 | . . 5 5 Highest-Rated Group 73 | . . 73 73 Highest-Rated Ally 31 | . . 31 26 Total Orders . | . . . . Ally Attacks 78 | . . . 78 Total Damage 322 | . . . 322 Kills 2 | . . . 2 Allies Corrupted . | . . . . Allies Melted . | . . . . Intel | -11 -10 -10 -10 ------- Run | Scr Mat Min Exi Robot Analysis Total 4 | . 4 . . Derelict Logs Recovered 1 | . . 1 . Drone Launches . | . . . . Drone Recoveries . | . . . . Exploration | -11 -10 -10 -10 ------------- Run | Scr Mat Min Exi Turns Passed 5051 | 18 2699 1309 1025 Spaces Moved 1673 | 1 576 629 467 Core . | . . . . Treads 1673 | 1 576 629 467 Legs . | . . . . Wheels . | . . . . Hover . | . . . . Flight . | . . . . Fastest Speed 160 | 160 160 180 160 Average Speed 176 | 160 165 180 185 Slowest Speed 240 | 160 180 180 240 Overloaded Moves . | . . . . Propulsion Burnouts . | . . . . Robots Hopped . | . . . . Cave-ins Triggered . | . . . . Exploration Rate (%) 63 | 2 86 99 67 Regions Visited 3 Branch Regions 2 Pre-discovered Areas 4 | . 2 1 1 Known Exits Taken . | . . . . Unknown Exits Taken 3 | 1 1 1 . Scrap Searched 1 | . . 1 . Spaces Dug 5 | . 5 . . Terrain Destroyed 39 | . 34 . 5 Melee . | . . . . Projectile . | . . . . AOE 39 | . 34 . 5 Terrain Rammed . | . . . . Walls Destroyed . | . . . . Machines Disabled . | . . . . Actions | -11 -10 -10 -10 --------- Run | Scr Mat Min Exi Total 3602 | 7 2247 804 544 Wait 1766 | . 1595 171 . Move 1670 | . 575 628 467 Hop . | . . . . Pick Up 32 | . 12 1 19 Fast Attach 6 | . 5 . 1 Attach 9 | . 1 . 8 Detach . | . . . . Swap 18 | 2 9 3 4 Drop 6 | . 4 . 2 Fire 76 | 5 42 . 29 Melee 14 | . . . 14 Ram . | . . . . Kick . | . . . . Crush 5 | . 4 1 . Escape Stasis . | . . . . Rewire . | . . . . Trap . | . . . . Miscellaneous . | . . . . Route ------- -11/Scrapyard -10/Materials (discovered 3 exits: [*Mat x2] / *Min) -10/Mines (discovered 3 exits: [*Mat x2] / *Exi) -10/Exiles History --------- Turn | Location | Event 19 | -11/Scrapyard | Discovered new exit (range 0) 19 | -11/Scrapyard | Entered Materials 309 | -10/Materials | Build established: Mutant 620 | -10/Materials | Discovered new exit (range 14) 1343 | -10/Materials | Discovered new exit (range 13) 2677 | -10/Materials | Discovered new exit (range 8) 2718 | -10/Materials | Entered Mines 2782 | -10/Mines | Learned location of Storage (-9) 3055 | -10/Mines | Met a Derelict who couldn't figure out how to use a Trap Extractor 3360 | -10/Mines | Deemed a non-threat by the Exiles lab entrance 3364 | -10/Mines | Discovered new exit (range 5) 3436 | -10/Mines | Discovered new exit (range 11) 3583 | -10/Mines | Found a damaged Exp. Sensor Array with a note attached 3587 | -10/Mines | Found Prototype Device 3637 | -10/Mines | Assisted by bots powering up and referring to "LRC-V3" 3680 | -10/Mines | Discovered new exit (range 15) 4027 | -10/Mines | Entered Exiles 4027 | -10/Exiles | Accompanied by 5 allies 4057 | -10/Exiles | Led the pair of lost Derelicts to a safe place 4069 | -10/Exiles | Met 8R-AWN 4101 | -10/Exiles | Met EX-HEX 4245 | -10/Exiles | Met EX-DEC 4278 | -10/Exiles | Learned location of Zion (-7) 4414 | -10/Exiles | Met EX-BIN 4434 | -10/Exiles | Aligned with FarCom system 4436 | -10/Exiles | Given EX-Vault access code 4477 | -10/Exiles | Opened EX-Vault 4522 | -10/Exiles | Warned to stay clear of 0b10 Research branches 4907 | -10/Exiles | Attacked by the Exiles 4933 | -10/Exiles | Build established: Hauler-Mutant 4969 | -10/Exiles | Core integrity fell below 50% 5020 | -10/Exiles | Lost 7 parts (1p3n3w) 5035 | -10/Exiles | Core integrity fell below 20% 5052 | -10/Exiles | Destroyed by 8R-AWN with 8R-AWN's Boregun Last Messages --------------- 05020_ HV Slug penetrates Wall. 05024_ Penetrated by HV Slug. 05024_ HV Slug penetrates Wall. 05024_ Penetrated by HV Slug. 05024_ HV Slug penetrates Wall. 05028_ Penetrated by HV Slug. 05028_ HV Slug penetrates Wall. 05028_ Penetrated by HV Slug. 05028_ EM Pulse Gun destroyed. 05028_ HV Slug penetrates Wall. 05034_ HV Slug penetrates Machine. 05034_ Penetrated by HV Slug. 05034_ HV Slug penetrates Wall. 05038_ Penetrated by HV Slug. 05038_ Lgt. Treads destroyed. 05038_ HV Slug penetrates Wall. 05038_ Penetrated by HV Slug. 05038_ HV Slug penetrates Wall. 05040_ 8R-AWN Prototype Leg ripped off. 05042_ Penetrated by HV Slug. Map ----- +----------------------------------------------------+ | """#??????????????????????????????????????? | | """#??????????????????????????????????????? | | """#??????????????????????????????????????? | | """""?????????????????????????????????????? | | """#??????????????????????????????????????? | | "X" """"??????????????????????????????????????? | | """ #??????????????????????????????????????? | | """""""""#??????????????????????????????????????? | | ###########??????????????????????????????????????? | | #????????????????????????????????????????????????? | | #????????????????????????????????????????????????? | | ##???????????????????????????????????????????????? | | ##???###########????????????????????????????????? | | #####"""""""""##???????????????????????????????? | | " """ """"##??????????????????????????????? | | "" " #??????????????????????????????? | | " """#??????????????????????????????? | | " "#???????????#####??????????????? | | " "##?????????##" #??????????????# | | ""###???????#" #?????????????## | | """#??????##" ##????????????# | | "#????### ###????????### | | #""" ##???# ########## | | ##""" [=##?##g #""""## | | ?#"""" =%% ### % * | | ##"" !%[ @ ## * | | #"""" g #### | | " ""#?#"""""#### | | #" "##?#######??#### | | ####;#??????????????##### | | ##???##??????????????????## | | ##?????????????????????????? | | "" #??????????????????????????? | | """ " " # % % #??????????????????????????? | | ####""" """# " ???????????????????????????? | | ???###""""# ###;# ####???????????????????????????? | | ##???######??? ? #???????????????????????????????? | | !#?????????????##????????????????????????????????? | | !#???????????????????????????????????????????????? | | "#???????????????????????????????????????????????? | | "#???????????????????????????????????????????????? | | ##???????????????????????????????????????????????? | | ?????????????????????????????????????????????????? | | ?????????????????????????????????????????????????? | | ?????????????????????????????????????????????????? | | ?????????????????????????????????????????????????? | | ?????????????????????????????????????????????????? | | ?????????????????????????????????????????????????? | | ?????????????????????????????????????????????????? | | ?????????????????????????????????????????????????? | +----------------------------------------------------+ Best States ------------- Heat Dissipation 25 Energy Generation 10 Energy Capacity 250 Matter Stores 300 Matter Capacity 300 Sight Range 16 Terrain Scan Density 10 Evasion (%) 40 Recoil Reduction 2 Item Schematics ----------------- None Robot Schematics ------------------ None Fabricated ------------ Nothing Alien Tech Used ----------------- None Achievements -------------- None Challenges ------------ None Game ------ Seed TransmissionSwarmAccelerator Manual? 0 Play Time 00:16:09 Cumulative 254.5 hours Start 2021.01.29 @ 20:05:44 End 2021.01.29 @ 20:20:54 Sessions 1 Manual Loads 0 Difficulty Rogue Special Mode None Game No. 179 Rogue 179 Adventurer 0 Explorer 0 Win Type - Total 6 Types 6/0/0/0/0/0/0/0/0 Lore% 58 Gallery% 65 Achievement% 49 Wizard Run 0 Options --------- ASCII 1 Keyboard 1 Movement Arrows Keybinds 0 Fullscreen 1 Font 24/Smallcaps Map View 76x50 Tactical HUD 1 Map Filters NONE Filters NONE Steam 1 RUN: e1a41e47-46ae-4791-86f7-f66850b71790